bitfinex/quotes_SOLUSD_20240705
["timestamp","ask_amount","ask_price","bid_price","bid_amount"]
[1720178987908,8.5696684,129.92,129.83,100.0]
[1720178988113,0.8723684,129.92,129.85,123.22]
[1720178988282,0.8723684,129.92,129.89,100.0]
[1720178989027,0.8723684,129.92,129.9,23.22]
[1720178989201,0.8723684,129.92,129.91,123.22]
[1720178989902,0.8723684,129.92,129.91,143.22]
[1720178990405,0.8723684,129.92,129.91,143.39]
[1720178990914,0.30767,130.01,129.94,23.22]
[1720178991110,0.30767,130.01,129.97,100.0]
[1720178991288,0.30767,130.01,129.95,100.0]
[1720178991612,0.30767,130.01,129.95,123.22]
[1720178991908,0.30767,130.01,129.95,100.0]
[1720178993524,0.30767,130.01,129.92,100.0]
[1720178993732,5.5898,129.99,129.89,100.0]
[1720178994026,27.8635,129.98,129.88,23.22]
[1720178994696,20.17,129.98,129.88,23.22]
[1720178994916,20.17,129.98,129.9,123.22]
[1720178995117,20.17,129.98,129.88,123.22]
[1720178995290,27.8635,129.98,129.88,100.0]
[1720178995805,7.6941,129.97,129.86,106.4183]
[1720178995990,20.17,129.96,129.86,106.4183]
[1720178996191,5.5898,129.99,129.91,123.22]
[1720178996594,5.5898,129.99,129.89,100.0]
[1720178996918,5.5898,129.99,129.91,100.0]
[1720178997807,5.5898,129.99,129.91,123.22]
[1720178999734,5.5898,129.99,129.93,100.0]
[1720179000614,5.5898,129.99,129.91,23.22]
[1720179000844,27.8639,129.98,129.89,100.0]
[1720179001221,20.17,129.98,129.89,100.0]
[1720179001420,20.0,129.98,129.91,100.0]
[1720179001735,20.0,129.98,129.89,100.0]
[1720179001940,5.5898,129.99,129.91,100.0]
[1720179002146,7.6935,129.98,129.89,100.0]
[1720179002445,7.6953,129.95,129.87,100.0]
[1720179002647,7.6965,129.93,129.83,106.0916]
[1720179002956,7.6965,129.93,129.83,123.22]
[1720179002957,5.5898,129.92,129.83,123.22]
[1720179003442,13.2872,129.92,129.83,100.0]
[1720179003747,0.17,129.91,129.83,100.0]
[1720179003946,20.17,129.91,129.81,123.22]
[1720179004259,20.17,129.91,129.81,100.0]
[1720179004428,20.17,129.91,129.76,100.0]
[1720179004816,20.17,129.91,129.8,100.0]
[1720179005054,20.17,129.91,129.82,100.0]
[1720179005341,27.8678,129.91,129.8,123.22]
[1720179005546,27.868,129.91,129.8,123.22]
[1720179005862,20.17,129.91,129.8,100.0]
[1720179006144,62.6346,129.91,129.76,100.0]
[1720179006347,5.5898,129.84,129.76,100.0]
[1720179006554,5.5898,129.84,129.78,100.0]
[1720179007055,5.5898,129.89,129.76,100.0]
[1720179007225,27.6998,129.88,129.76,100.0]
[1720179007421,20.17,129.88,129.76,200.0]
[1720179007639,20.17,129.88,129.76,100.0]
[1720179007862,7.7004,129.87,129.76,100.0]
[1720179008064,20.17,129.88,129.76,100.0]
[1720179008065,7.7014,129.85,129.76,100.0]
[1720179008259,20.17,129.86,129.71,100.0]
[1720179008260,5.5898,129.83,129.71,100.0]
[1720179008451,7.7035,129.81,129.7,6.3804]
[1720179008664,0.17,129.8,129.69,100.0]
[1720179008844,27.8729,129.82,129.69,100.0]
[1720179008845,20.17,129.82,129.69,100.0]
[1720179009044,20.17,129.82,129.7,23.22]
[1720179009246,7.7049,129.79,129.69,100.0]
[1720179009441,0.17,129.78,129.69,100.0]
[1720179009874,0.17,129.78,129.71,100.0]
[1720179010377,0.17,129.78,129.67,100.0]
[1720179010676,0.17,129.78,129.63,6.5406]
[1720179010677,5.5898,129.77,129.68,100.0]
[1720179010878,0.17,129.76,129.65,100.0]
[1720179011181,0.17,129.76,129.67,100.0]
[1720179011341,0.17,129.76,129.69,100.0]
[1720179012348,0.17,129.76,129.67,100.0]
[1720179012680,0.17,129.76,129.69,100.0]
[1720179012858,5.5898,129.77,129.71,100.0]
[1720179013049,5.5898,129.77,129.69,100.0]
[1720179013374,0.17,129.76,129.67,100.0]
[1720179014051,0.17,129.76,129.68,20.0]
[1720179014247,0.17,129.76,129.7,100.0]
[1720179014454,5.5898,129.77,129.7,100.0]
[1720179016046,0.17,129.76,129.7,100.0]
[1720179016649,8.04966551,129.79,129.72,100.0]
[1720179016989,5.5898,129.81,129.7,100.0]
[1720179017279,8.04243164,129.8,129.7,100.0]
[1720179017573,7.7054,129.78,129.66,100.0]
[1720179017883,8.04243164,129.8,129.65,100.0]
[1720179017884,7.7071,129.76,129.65,100.0]
[1720179018048,5.5898,129.75,129.65,123.22]
[1720179018554,0.17,129.74,129.65,123.22]
[1720179019149,0.17,129.74,129.65,23.22]
[1720179019345,0.17,129.74,129.62,115.9978]
[1720179019549,0.17,129.74,129.62,100.0]
[1720179019550,7.7083,129.73,129.62,100.0]
[1720179019785,0.17,129.72,129.62,100.0]
[1720179019952,0.17,129.72,129.65,100.0]
[1720179020284,0.17,129.72,129.63,100.0]
[1720179020668,7.8785,129.73,129.61,123.22]
[1720179021181,0.17,129.73,129.63,100.0]
[1720179021362,0.17,129.74,129.65,100.0]
[1720179021547,0.17,129.74,129.61,23.22]
[1720179021753,7.878,129.74,129.61,123.22]
[1720179021954,7.878,129.74,129.62,20.0]
[1720179022150,5.5898,129.73,129.59,24.0923684]
[1720179022372,7.7096,129.71,129.6,100.0]
[1720179022677,0.17,129.7,129.59,24.0923684]
[1720179022897,7.8804,129.7,129.59,0.8723684]
[1720179023067,5.5898,129.69,129.59,0.8723684]
[1720179023272,0.17,129.68,129.59,0.8723684]
[1720179024101,0.17,129.68,129.61,100.0]
[1720179024475,0.17,129.68,129.63,100.0]
[1720179025104,5.5898,129.69,129.63,100.0]
[1720179026108,5.5898,129.69,129.61,100.0]
[1720179026296,0.17,129.68,129.61,100.0]
[1720179026816,7.8813,129.68,129.59,0.8723684]
[1720179027102,5.5898,129.69,129.61,123.22]
[1720179027272,5.5898,129.69,129.63,100.0]
[1720179027473,5.5898,129.69,129.65,100.0]
[1720179027673,13.63469827,129.73,129.65,100.0]
[1720179027895,13.63469827,129.73,129.63,123.22]
[1720179028997,5.5898,129.73,129.63,123.22]
[1720179029707,5.5898,129.73,129.66,100.0]
[1720179029906,5.5898,129.73,129.64,100.0]
[1720179030601,7.7089,129.72,129.62,100.0]
[1720179030901,27.7089,129.72,129.62,100.0]
[1720179031616,0.17,129.71,129.62,100.0]
[1720179032015,13.2982,129.73,129.62,100.0]
[1720179032016,0.17,129.72,129.64,100.0]
[1720179032323,0.17,129.72,129.62,123.22]
[1720179032818,0.17,129.72,129.64,100.0]
[1720179033890,0.17,129.72,129.62,123.22]
[1720179034142,0.17,129.72,129.63,20.0]
[1720179034319,0.17,129.72,129.63,43.22]
[1720179034522,0.17,129.72,129.65,100.0]
[1720179034702,0.17,129.72,129.67,100.0]
[1720179035020,5.5898,129.73,129.65,100.0]
[1720179035436,5.5898,129.73,129.6,100.0]
[1720179035614,7.7112,129.69,129.6,100.0]
[1720179035932,7.7105,129.7,129.6,100.0]
[1720179036433,0.17,129.69,129.59,0.8723684]
[1720179036599,0.17,129.69,129.6,100.0]
[1720179036802,0.17,129.69,129.62,100.0]
[1720179037204,5.5898,129.73,129.64,100.0]
[1720179037428,5.5898,129.73,129.64,123.22]
[1720179037649,5.5898,129.73,129.66,100.0]
[1720179037939,5.5898,129.73,129.68,100.0]
[1720179039206,5.5898,129.73,129.64,123.22]
[1720179039207,5.5898,129.73,129.7,100.0]
[1720179039410,5.5898,129.73,129.68,100.0]
[1720179041848,8.05129437,129.77,129.7,100.0]
[1720179042140,8.05129437,129.77,129.74,100.0]
[1720179042526,5.5898,129.82,129.76,100.0]
[1720179043914,5.5898,129.82,129.78,100.0]
[1720179044117,13.63608542,129.85,129.78,100.0]
[1720179044334,5.5898,129.85,129.8,100.0]
[1720179044517,5.5898,129.89,129.82,100.0]
[1720179044717,8.04450694,129.87,129.82,100.0]
[1720179044940,5.5898,129.89,129.82,100.0]
[1720179045330,5.5898,129.89,129.85,100.0]
[1720179045617,13.63292496,129.93,129.83,143.22]
[1720179046245,13.63292496,129.93,129.83,123.22]
[1720179046422,13.63292496,129.93,129.83,100.0]
[1720179046735,13.63292496,129.93,129.8,23.22]
[1720179046736,13.63292496,129.93,129.81,100.0]
[1720179046943,13.63292496,129.93,129.82,20.0]
[1720179046944,7.6974,129.92,129.82,20.0]
[1720179047140,7.6974,129.92,129.84,100.0]
[1720179047332,21.32932496,129.93,129.84,100.0]
[1720179047843,0.17,129.92,129.84,100.0]
[1720179048218,13.63292496,129.93,129.84,100.0]
[1720179048418,13.63292496,129.93,129.82,43.22]
[1720179048419,13.63292496,129.93,129.86,100.0]
[1720179048616,13.63292496,129.93,129.85,100.0]
[1720179048833,13.63292496,129.93,129.86,100.0]
[1720179049037,13.63292496,129.93,129.84,100.0]
[1720179049461,21.32952496,129.93,129.84,100.0]
[1720179049922,13.63292496,129.93,129.84,100.0]
[1720179050345,0.17,129.92,129.84,100.0]
[1720179051048,5.5898,129.93,129.85,20.0]
[1720179051243,13.2862,129.93,129.85,20.0]
[1720179051422,21.32710921,129.93,129.84,100.0]
[1720179051746,21.32730921,129.93,129.84,100.0]
[1720179052246,0.17,129.92,129.84,100.0]
[1720179053046,0.17,129.92,129.86,100.0]
[1720179053252,0.17,129.92,129.83,100.0]
[1720179053758,0.17,129.92,129.81,100.0]
[1720179053927,7.6978,129.91,129.81,100.0]
[1720179054251,7.7009,129.86,129.77,106.394]
[1720179054547,0.17,129.9,129.77,100.0]
[1720179054548,0.17,129.87,129.77,100.0]
[1720179054762,0.17,129.88,129.76,100.0]
[1720179055045,7.701,129.86,129.76,100.0]
[1720179055250,0.17,129.85,129.76,100.0]
[1720179055445,0.17,129.85,129.78,100.0]
[1720179055827,0.17,129.85,129.75,100.0]
[1720179056054,7.7018,129.84,129.73,100.0]
[1720179056227,0.17,129.83,129.73,100.0]
[1720179056430,7.7031,129.82,129.73,100.0]
[1720179056755,0.17,129.81,129.71,100.0]
[1720179056954,0.17,129.81,129.67,100.0]
[1720179057263,7.7043,129.8,129.69,100.0]
[1720179057429,7.7043,129.8,129.67,123.22]
[1720179057430,0.17,129.79,129.67,123.22]
[1720179057635,0.17,129.79,129.69,100.0]
[1720179057944,7.8749,129.79,129.69,100.0]
[1720179058128,0.17,129.79,129.71,100.0]
[1720179058655,7.7036,129.81,129.71,100.0]
[1720179058656,0.17,129.8,129.71,100.0]
[1720179059858,20.17,129.8,129.73,100.0]
[1720179060546,0.17,129.8,129.71,123.22]
[1720179060755,0.17,129.81,129.71,123.22]
[1720179061069,0.17,129.81,129.72,100.0]
[1720179061742,0.17,129.82,129.72,100.0]
[1720179062045,0.17,129.82,129.74,100.0]
[1720179062246,27.873,129.82,129.74,100.0]
[1720179062941,20.17,129.82,129.76,100.0]
[1720179063141,5.5898,129.84,129.76,100.0]
[1720179063353,5.5898,129.84,129.78,100.0]
[1720179064368,5.5898,129.84,129.73,100.0]
[1720179064532,20.0,129.83,129.71,23.22]
[1720179064729,7.7042,129.8,129.69,100.0]
[1720179065054,7.7047,129.79,129.69,100.0]
[1720179065232,0.17,129.78,129.68,100.0]
[1720179065431,7.7071,129.76,129.68,100.0]
[1720179065635,20.17,129.75,129.66,100.0]
[1720179065854,20.17,129.75,129.68,100.0]
[1720179066159,20.17,129.75,129.66,100.0]
[1720179066463,7.8773,129.75,129.66,100.0]
[1720179066644,20.0,129.74,129.66,100.0]
[1720179066967,0.17,129.73,129.66,100.0]
[1720179067265,5.5898,129.77,129.68,100.0]
[1720179067433,20.17,129.76,129.68,100.0]
[1720179067633,27.8767,129.76,129.66,100.0]
[1720179068036,20.17,129.76,129.68,100.0]
[1720179068233,0.17,129.76,129.7,100.0]
[1720179068958,5.5898,129.77,129.72,100.0]
[1720179069268,5.5898,129.82,129.75,100.0]
[1720179070365,5.5898,129.82,129.77,100.0]
[1720179070561,15.74456259,129.85,129.77,100.0]
[1720179070562,8.04326259,129.85,129.77,100.0]
[1720179070738,5.5898,129.86,129.77,100.0]
[1720179071364,5.5898,129.86,129.8,100.0]
[1720179071866,5.5898,129.86,129.79,100.0]
[1720179072166,5.5898,129.86,129.77,123.22]
[1720179072538,5.5898,129.86,129.77,100.0]
[1720179072739,13.2909,129.86,129.76,100.0]
[1720179073178,5.5898,129.86,129.79,100.0]
[1720179073476,0.17,129.85,129.77,100.0]
[1720179073646,0.17,129.85,129.79,100.0]
[1720179074273,15.74393004,129.89,129.76,23.22]
[1720179074274,8.04493004,129.89,129.81,100.0]
[1720179074770,8.04493004,129.89,129.83,100.0]
[1720179074958,5.5898,129.9,129.83,100.0]
[1720179076044,7.6994,129.88,129.83,100.0]
[1720179076245,5.5898,129.9,129.78,100.0]
[1720179076476,7.7006,129.86,129.76,100.0]
[1720179076656,7.7001,129.87,129.76,100.0]
[1720179076844,20.17,129.86,129.76,100.0]
[1720179077041,27.8708,129.86,129.76,100.0]
[1720179077268,7.7012,129.85,129.76,100.0]
[1720179077453,7.7025,129.83,129.74,100.0]
[1720179077772,27.7021,129.84,129.74,100.0]
[1720179078067,0.17,129.82,129.74,100.0]
[1720179078271,0.17,129.82,129.74,123.22]
[1720179078457,0.17,129.83,129.74,123.22]
[1720179078766,0.17,129.83,129.74,100.0]
[1720179078971,13.2929,129.82,129.74,100.0]
[1720179079203,0.17,129.81,129.74,100.0]
[1720179080667,5.5898,129.82,129.78,100.0]
[1720179080872,5.5898,129.82,129.75,100.0]
[1720179081874,0.17,129.81,129.73,100.0]
[1720179082473,7.7047,129.8,129.71,100.0]
[1720179082650,27.875,129.79,129.69,100.0]
[1720179082853,0.17,129.78,129.67,100.0]
[1720179083260,0.17,129.78,129.69,100.0]
[1720179083768,7.7061,129.77,129.67,100.0]
[1720179083971,7.7082,129.74,129.67,100.0]
[1720179084185,0.17,129.73,129.67,100.0]
[1720179084384,0.17,129.73,129.64,106.3787]
[1720179084385,7.7079,129.74,129.64,100.0]
[1720179084586,25.7598,129.73,129.66,100.0]
[1720179084774,5.7598,129.73,129.66,100.0]
[1720179084965,20.0,129.72,129.66,100.0]
[1720179085163,5.7598,129.73,129.66,100.0]
[1720179085164,5.7598,129.73,129.66,123.22]
[1720179085396,5.5898,129.73,129.68,100.0]
[1720179085694,13.2954,129.78,129.7,100.0]
[1720179085882,20.17,129.77,129.7,100.0]
[1720179086890,20.0,129.77,129.7,100.0]
[1720179087083,5.5898,129.78,129.72,100.0]
[1720179087466,13.57900722,129.82,129.74,100.0]
[1720179087669,8.0500984,129.82,129.74,100.0]
[1720179087873,15.7531984,129.82,129.74,100.0]
[1720179088171,8.0500984,129.82,129.76,100.0]
[1720179088370,13.2917,129.84,129.76,100.0]
[1720179088786,21.33995336,129.84,129.76,100.0]
[1720179088992,4.5898,129.84,129.78,100.0]
[1720179090525,7.6995,129.88,129.8,100.0]
[1720179090805,64.32256828,129.9,129.82,100.0]
[1720179090806,8.04435034,129.9,129.82,100.0]
[1720179091007,15.74265034,129.9,129.79,123.22]
[1720179091598,8.04435034,129.9,129.81,100.0]
[1720179091986,12.63415034,129.9,129.81,100.0]
[1720179092376,4.5898,129.9,129.81,100.0]
[1720179092579,12.2881,129.9,129.81,100.0]
[1720179093002,4.5898,129.9,129.81,100.0]
[1720179093683,7.6998,129.88,129.81,100.0]
[1720179093884,7.8701,129.87,129.78,100.0]
[1720179094085,7.7017,129.85,129.77,100.0]
[1720179094307,0.17,129.84,129.77,100.0]
[1720179095001,0.17,129.85,129.77,100.0]
[1720179095998,0.17,129.86,129.77,100.0]
[1720179096205,7.8707,129.86,129.77,100.0]
[1720179096589,7.8707,129.86,129.75,23.14]
[1720179096590,7.7019,129.84,129.75,100.0]
[1720179096786,0.17,129.83,129.75,123.14]
[1720179096993,7.7006,129.86,129.75,123.14]
[1720179096994,7.7006,129.86,129.78,100.0]
[1720179097286,0.17,129.87,129.78,100.0]
[1720179097590,7.6988,129.89,129.8,100.0]
[1720179097793,7.6997,129.88,129.8,100.0]
[1720179098013,7.6989,129.89,129.8,100.0]
[1720179098217,12.288,129.9,129.82,100.0]
[1720179098403,4.5898,129.9,129.82,100.0]
[1720179099297,4.5898,129.9,129.84,100.0]
[1720179099506,4.5898,129.9,129.81,100.0]
[1720179099507,7.6991,129.89,129.81,100.0]
[1720179099821,7.6991,129.89,129.79,6.6271]
[1720179099822,20.33364073,129.9,129.79,29.7671]
[1720179100726,12.63544073,129.9,129.82,123.14]
[1720179100906,4.5898,129.9,129.82,123.14]
[1720179101106,4.5898,129.9,129.84,100.0]
[1720179101614,4.5898,129.9,129.82,100.0]
[1720179101804,12.2882,129.9,129.82,100.0]
[1720179102013,12.2882,129.9,129.79,106.6271]
[1720179102506,4.5898,129.9,129.79,6.6271]
[1720179102704,7.699,129.89,129.78,123.14]
[1720179102921,0.17,129.88,129.8,100.0]
[1720179103426,0.17,129.89,129.82,100.0]
[1720179104241,0.17,129.89,129.78,100.0]
[1720179104430,7.7005,129.87,129.78,100.0]
[1720179104923,0.17,129.86,129.78,100.0]
[1720179106204,0.17,129.87,129.78,100.0]
[1720179106734,0.17,129.87,129.8,100.0]
[1720179107032,7.87,129.87,129.78,100.0]
[1720179107227,7.87,129.87,129.74,115.5537]
[1720179107228,0.17,129.87,129.75,100.0]
[1720179107436,7.7025,129.83,129.73,100.0]
[1720179107611,7.7025,129.83,129.75,100.0]
[1720179107933,0.17,129.82,129.75,100.0]
[1720179108139,4.5898,129.87,129.77,100.0]
[1720179108308,0.17,129.86,129.77,100.0]
[1720179108508,0.17,129.86,129.75,123.14]
[1720179108712,0.17,129.86,129.77,100.0]
[1720179108931,4.5898,129.87,129.79,100.0]
[1720179110338,0.17,129.86,129.79,100.0]
[1720179110816,4.5898,129.87,129.81,100.0]
[1720179113160,0.17,129.86,129.78,123.14]
[1720179113848,0.17,129.86,129.77,100.0]
[1720179114552,7.7022,129.84,129.74,100.0]
[1720179114850,4.5898,129.87,129.74,123.14]
[1720179114851,0.17,129.83,129.74,123.14]
[1720179115440,4.5898,129.83,129.69,107.7022]
[1720179115648,0.17,129.82,129.66,15.3494]
[1720179115859,7.7041,129.81,129.67,23.14]
[1720179116046,0.17,129.8,129.71,23.14]
[1720179116347,0.17,129.82,129.71,100.0]
[1720179116829,0.17,129.82,129.72,23.14]
[1720179117253,0.17,129.82,129.71,100.0]
[1720179117552,7.873,129.82,129.71,100.0]
[1720179117758,0.17,129.82,129.66,115.3494]
[1720179117927,20.0,129.81,129.67,123.14]
[1720179118127,20.0,129.81,129.66,15.3494]
[1720179118128,0.17,129.82,129.75,100.0]
[1720179118857,13.45324825,129.86,129.71,100.0]
[1720179118858,4.5898,129.87,129.79,100.0]
[1720179119158,38.49,129.94,129.84,100.0]
[1720179119452,4.5898,129.93,129.84,100.0]
[1720179119756,4.5898,129.93,129.82,100.0]
[1720179120253,4.5898,129.93,129.85,100.0]
[1720179120426,4.5898,129.93,129.87,100.0]
[1720179120626,4.5898,129.97,129.89,100.0]
[1720179120845,4.5898,129.97,129.91,100.0]
[1720179121055,4.5898,129.97,129.89,123.14]
[1720179121545,4.5898,129.97,129.89,100.0]
[1720179121855,4.5898,129.97,129.9,100.0]
[1720179122837,4.5898,129.97,129.88,100.0]
[1720179123049,4.5898,129.97,129.9,100.0]
[1720179123963,0.17,129.96,129.88,100.0]
[1720179124166,0.17,129.96,129.85,100.0]
[1720179124353,7.8647,129.96,129.85,100.0]
[1720179124662,7.8647,129.96,129.83,123.14]
[1720179124838,7.6953,129.95,129.83,123.14]
[1720179125037,0.17,129.94,129.83,123.14]
[1720179125247,7.8659,129.94,129.83,100.0]
[1720179125557,0.17,129.94,129.85,100.0]
[1720179125762,0.17,129.94,129.87,100.0]
[1720179126665,0.17,129.95,129.85,100.0]
[1720179126875,7.8652,129.95,129.85,100.0]
[1720179127157,0.17,129.95,129.83,100.0]
[1720179127363,0.17,129.96,129.85,100.0]
[1720179127731,0.17,129.96,129.87,100.0]
[1720179127952,12.2839,129.97,129.87,123.14]
[1720179127953,4.5898,129.97,129.87,123.14]
[1720179128142,4.5898,129.97,129.88,100.0]
[1720179128349,4.5898,129.97,129.86,100.0]
[1720179128753,4.5898,129.97,129.86,123.14]
[1720179129273,12.2844,129.97,129.86,123.14]
[1720179129640,7.6947,129.96,129.86,123.14]
[1720179129842,7.6953,129.95,129.86,100.0]
[1720179130161,4.5898,129.97,129.88,100.0]
[1720179130465,4.5898,129.97,129.9,100.0]
[1720179131552,4.5898,129.97,129.84,100.0]
[1720179131858,7.6954,129.95,129.84,100.0]
[1720179132257,0.17,129.94,129.84,100.0]
[1720179132469,0.17,129.94,129.82,100.0]
[1720179132634,7.6965,129.93,129.83,100.0]
[1720179132835,0.17,129.92,129.83,123.14]
[1720179133232,0.17,129.92,129.85,100.0]
[1720179133637,0.17,129.92,129.82,23.14]
[1720179133843,4.5898,129.91,129.8,100.0]
[1720179134042,4.5898,129.91,129.78,100.0]
[1720179134263,0.17,129.9,129.81,100.0]
[1720179134475,0.17,129.9,129.74,21.8743]
[1720179134476,0.17,129.9,129.83,100.0]
[1720179135262,4.5898,129.91,129.87,100.0]
[1720179135645,4.5898,129.91,129.83,23.14]
[1720179135874,4.5898,129.91,129.84,100.0]
[1720179136365,4.5898,129.91,129.87,100.0]
[1720179136769,4.5898,129.91,129.84,100.0]
[1720179137474,4.5898,129.91,129.78,100.0]
[1720179137475,7.6986,129.9,129.79,100.0]
[1720179137871,0.17,129.89,129.79,123.14]
[1720179138077,7.8688,129.89,129.79,123.14]
[1720179138387,0.17,129.89,129.79,100.0]
[1720179138558,4.5898,129.91,129.74,21.8743]
[1720179138559,70.28,129.9,129.74,106.1936]
[1720179138761,70.28,129.9,129.73,100.0]
[1720179138762,7.7019,129.84,129.73,100.0]
[1720179141358,0.17,129.84,129.75,100.0]
[1720179142279,0.17,129.84,129.77,100.0]
[1720179143573,0.17,129.84,129.73,23.14]
[1720179143574,4.5898,129.83,129.73,123.14]
[1720179143778,4.5898,129.83,129.77,100.0]
[1720179144292,8.04924814,129.85,129.81,100.0]
[1720179144486,4.5898,129.89,129.81,100.0]
[1720179144670,4.5898,129.89,129.83,100.0]
[1720179144869,4.5898,129.89,129.8,123.14]
[1720179145114,4.5898,129.89,129.82,100.0]
[1720179145389,4.5898,129.89,129.84,100.0]
[1720179147489,4.5898,129.89,129.8,123.14]
[1720179147490,0.17,129.88,129.8,123.14]
[1720179148101,0.17,129.88,129.8,100.0]
[1720179148305,7.7,129.87,129.8,100.0]
[1720179148475,0.17,129.88,129.8,100.0]
[1720179148476,7.7006,129.86,129.8,100.0]
[1720179148676,0.17,129.85,129.8,100.0]
[1720179149100,0.17,129.85,129.77,23.14]
[1720179149402,0.17,129.86,129.78,100.0]
[1720179149574,7.6995,129.88,129.78,100.0]
[1720179149575,20.17,129.87,129.78,100.0]
[1720179150195,20.17,129.87,129.77,23.14]
[1720179150406,7.701,129.86,129.76,123.14]
[1720179150711,0.17,129.85,129.76,123.14]
[1720179151085,0.17,129.85,129.76,100.0]
[1720179151514,0.17,129.85,129.76,123.14]
[1720179151674,27.8713,129.85,129.76,100.0]
[1720179151870,7.8713,129.85,129.76,100.0]
[1720179152475,0.17,129.85,129.76,123.14]
[1720179152897,0.17,129.85,129.76,100.0]
[1720179153282,20.17,129.85,129.76,100.0]
[1720179153485,20.17,129.85,129.76,123.14]
[1720179155007,0.17,129.85,129.76,123.14]
[1720179155183,0.17,129.86,129.76,123.14]
[1720179155384,7.7015,129.85,129.76,123.14]
[1720179155577,0.17,129.84,129.76,123.14]
[1720179156290,20.17,129.85,129.76,123.14]
[1720179159915,20.17,129.75,129.66,100.0]
[1720179160227,20.17,129.75,129.68,100.0]
[1720179160821,0.17,129.75,129.68,100.0]
[1720179160999,0.17,129.75,129.66,123.14]
[1720179161204,4.5898,129.77,129.72,100.0]
[1720179161422,5.76714556,129.83,129.74,100.0]
[1720179161604,23.842,129.86,129.72,123.14]
[1720179161837,23.842,129.86,129.72,100.0]
[1720179162022,7.7039,129.81,129.72,100.0]
[1720179162424,23.842,129.86,129.72,100.0]
[1720179162729,7.7024,129.83,129.74,100.0]
[1720179162898,27.873,129.82,129.74,100.0]
[1720179163097,4.5898,129.81,129.67,5.77341183]
[1720179163317,7.7055,129.78,129.71,100.0]
[1720179163515,7.7055,129.78,129.65,260.9]
[1720179163718,7.876,129.77,129.67,100.0]
[1720179163929,7.706,129.77,129.67,100.0]
[1720179164224,0.17,129.76,129.67,123.14]
[1720179164529,4.5898,129.75,129.66,100.0]
[1720179164734,0.17,129.74,129.66,100.0]
[1720179165024,4.5898,129.75,129.69,100.0]
[1720179165224,4.5898,129.75,129.71,100.0]
[1720179166035,4.5898,129.75,129.66,23.14]